bitfinex/quotes_BTCUSD_20250809
["timestamp","ask_amount","ask_price","bid_price","bid_amount"]
[1754702222697,0.83738266,116740.0,116730.0,0.00211108]
[1754702222924,0.8800749,116740.0,116730.0,8.108e-05]
[1754702223962,0.8820749,116740.0,116730.0,8.108e-05]
[1754702224176,0.8800749,116740.0,116730.0,8.108e-05]
[1754702224658,0.8810749,116740.0,116730.0,8.108e-05]
[1754702225311,0.8820749,116740.0,116730.0,8.108e-05]
[1754702229750,0.52879925,116720.0,116710.0,0.06947762]
[1754702229960,0.8155561,116720.0,116710.0,0.07150762]
[1754702230169,0.8155561,116720.0,116710.0,0.00203]
[1754702230614,0.81521517,116720.0,116710.0,0.00203]
[1754702231042,0.81521517,116720.0,116710.0,0.00303]
[1754702231496,0.84096117,116720.0,116710.0,0.00403]
[1754702235417,0.84602117,116720.0,116710.0,0.002]
[1754702236679,0.84602117,116720.0,116710.0,0.001]
[1754702236858,0.18881394,116710.0,116700.0,0.01041868]
[1754702237096,0.4923503,116710.0,116700.0,0.01249593]
[1754702237315,0.40555605,116710.0,116700.0,0.01249593]
[1754702237529,0.43130305,116710.0,116700.0,0.01249593]
[1754702238194,0.43130305,116710.0,116700.0,0.01537593]
[1754702238414,0.43130305,116710.0,116700.0,0.01737593]
[1754702239678,0.5180973,116710.0,116700.0,0.01737593]
[1754702243083,0.5180973,116710.0,116700.0,0.01449593]
[1754702246042,0.5211173,116710.0,116700.0,0.01449593]
[1754702246458,0.5230973,116710.0,116700.0,0.01449593]
[1754702247119,0.5230973,116710.0,116700.0,0.01246593]
[1754702247331,0.8630973,116710.0,116700.0,0.01246593]
[1754702252777,0.8630973,116710.0,116700.0,0.01146593]
[1754702253651,0.8630973,116710.0,116700.0,0.01046593]
[1754702254590,0.77630305,116710.0,116700.0,0.01046593]
[1754702265235,0.98218305,116710.0,116700.0,0.01046593]
[1754702297153,0.98418305,116710.0,116700.0,0.01046593]
[1754702298105,0.98618305,116710.0,116700.0,0.01046593]
[1754702308230,0.99421095,116710.0,116700.0,0.01046593]
[1754702308505,1.0810052,116710.0,116700.0,0.01046593]
[1754702319618,0.9511252,116710.0,116700.0,0.01046593]
[1754702319825,1.0809652,116710.0,116700.0,0.01046593]
[1754702323189,1.0809652,116710.0,116700.0,0.01258593]
[1754702328945,1.0809652,116710.0,116700.0,0.01046593]
[1754702339696,0.99417095,116710.0,116700.0,0.01046593]
[1754702342533,0.99417396,116710.0,116700.0,0.01046593]
[1754702355609,0.99417405,116710.0,116700.0,0.01046593]
[1754702360794,0.78829405,116710.0,116700.0,0.01046593]
[1754702363501,0.78829408,116710.0,116700.0,0.01046593]
[1754702363730,0.87508833,116710.0,116700.0,0.01046593]
[1754702366531,0.87508822,116710.0,116700.0,0.01046593]
[1754702369546,0.87508783,116710.0,116700.0,0.01046593]
[1754702378492,0.875088,116710.0,116700.0,0.01046593]
[1754702381493,0.87508772,116710.0,116700.0,0.01046593]
[1754702382133,1.08096772,116710.0,116700.0,0.01046593]
[1754702386153,0.87508772,116710.0,116700.0,0.01046593]
[1754702390745,0.87508796,116710.0,116700.0,0.01046593]
[1754702393630,0.87508785,116710.0,116700.0,0.01046593]
[1754702401584,0.87509021,116710.0,116700.0,0.01046593]
[1754702404475,0.87509017,116710.0,116700.0,0.01046593]
[1754702425676,0.87509069,116710.0,116700.0,0.01046593]
[1754702428346,0.87509024,116710.0,116700.0,0.01046593]
[1754702440748,0.87508726,116710.0,116700.0,0.01046593]
[1754702443618,0.8670573,116710.0,116700.0,0.01046593]
[1754702443989,0.87508581,116710.0,116700.0,0.01046593]
[1754702449802,1.5104318,116710.0,116700.0,0.01046593]
[1754702461008,1.51043015,116710.0,116700.0,0.01046593]
[1754702463632,1.51043017,116710.0,116700.0,0.01046593]
[1754702469724,1.51042959,116710.0,116700.0,0.01046593]
[1754702472114,0.87508369,116710.0,116700.0,0.01046593]
[1754702472342,1.51042959,116710.0,116700.0,0.01046593]
[1754702478728,1.51042867,116710.0,116700.0,0.01046593]
[1754702481823,1.51042861,116710.0,116700.0,0.01046593]
[1754702487905,1.51042857,116710.0,116700.0,0.01046593]
[1754702505481,1.71630857,116710.0,116700.0,0.01046593]
[1754702508927,1.71631234,116710.0,116700.0,0.01046593]
[1754702516496,1.08096644,116710.0,116700.0,0.01046593]
[1754702516711,1.71631234,116710.0,116700.0,0.01046593]
[1754702522697,1.71631459,116710.0,116700.0,0.01046593]
[1754702528046,1.71631542,116710.0,116700.0,0.01046593]
[1754702534767,1.71631512,116710.0,116700.0,0.01046593]
[1754702535971,1.71631493,116710.0,116700.0,0.01046593]
[1754702542115,1.08096903,116710.0,116700.0,0.01046593]
[1754702542326,1.71631493,116710.0,116700.0,0.01046593]
[1754702543660,1.71631606,116710.0,116700.0,0.01046593]
[1754702543869,1.51043606,116710.0,116700.0,0.01046593]
[1754702546173,1.82810901,116710.0,116700.0,1e-08]
[1754702549774,1.82810626,116710.0,116700.0,1e-08]
[1754702550584,1.48184747,116700.0,116690.0,1e-08]
[1754702550791,1.78724383,116700.0,116690.0,1e-08]
[1754702550963,1.79036383,116700.0,116690.0,1e-08]
[1754702551323,1.81076383,116700.0,116690.0,1e-08]
[1754702551918,1.81176383,116700.0,116690.0,1e-08]
[1754702552812,1.81276383,116700.0,116690.0,1e-08]
[1754702553125,2.77381027,116700.0,116690.0,1e-08]
[1754702553332,1.82079142,116700.0,116690.0,1e-08]
[1754702553689,1.81979142,116700.0,116690.0,1e-08]
[1754702553901,1.81879142,116700.0,116690.0,1e-08]
[1754702554112,1.82479142,116700.0,116690.0,1e-08]
[1754702564614,1.81676383,116700.0,116690.0,1e-08]
[1754702565219,0.85852498,116700.0,116690.0,0.00211001]
[1754702565424,1.49387088,116700.0,116690.0,0.00211001]
[1754702565987,1.81154383,116700.0,116690.0,0.00211001]
[1754702566192,1.68190383,116700.0,116690.0,0.00211001]
[1754702566348,1.49387088,116700.0,116690.0,0.00211001]
[1754702567149,1.81154383,116700.0,116690.0,0.00211001]
[1754702569007,1.81466383,116700.0,116690.0,0.00211001]
[1754702569181,1.81676383,116700.0,116690.0,0.00211001]
[1754702572769,2.02268383,116700.0,116690.0,0.00211001]
[1754702577188,2.02268383,116700.0,116690.0,1e-08]
[1754702594294,2.03071548,116700.0,116690.0,1e-08]
[1754702598829,2.03062979,116700.0,116690.0,1e-08]
[1754702607986,2.03063039,116700.0,116690.0,1e-08]
[1754702622489,1.94383614,116700.0,116690.0,1e-08]
[1754702625036,1.62616319,116700.0,116690.0,1e-08]
[1754702626031,1.62616421,116700.0,116690.0,1e-08]
[1754702632498,1.62612421,116700.0,116690.0,1e-08]
[1754702648584,1.94379319,116700.0,116690.0,1e-08]
[1754702648791,2.03058744,116700.0,116690.0,1e-08]
[1754702649041,1.71291449,116700.0,116690.0,1e-08]
[1754702649488,1.07756859,116700.0,116690.0,1e-08]
[1754702649727,1.71291449,116700.0,116690.0,1e-08]
[1754702650410,1.71291417,116700.0,116690.0,1e-08]
[1754702652385,2.03058712,116700.0,116690.0,1e-08]
[1754702666261,2.03058382,116700.0,116690.0,1e-08]
[1754702667125,2.0305837,116700.0,116690.0,1e-08]
[1754702670012,2.03058249,116700.0,116690.0,1e-08]
[1754702671253,2.03660042,116700.0,116690.0,1e-08]
[1754702685556,0.82418921,116690.0,116680.0,0.0204]
[1754702685760,1.12740557,116690.0,116680.0,0.02246]
[1754702686206,1.14986557,116690.0,116680.0,0.02246]
[1754702686679,0.51140898,116680.0,116670.0,0.0004]
[1754702686889,1.36317699,116680.0,116670.0,0.00171]
[1754702687285,1.36661099,116680.0,116670.0,0.00171]
[1754702687488,1.44776526,116680.0,116670.0,0.00171]
[1754702687983,1.44876526,116680.0,116670.0,0.00171]
[1754702688634,1.47574916,116680.0,116670.0,0.00171]
[1754702691149,1.48431035,116680.0,116670.0,0.00171]
[1754702698036,1.48750035,116680.0,116670.0,0.00171]
[1754702700103,1.48962035,116680.0,116670.0,0.00171]
[1754702702690,0.84896445,116680.0,116670.0,0.00171]
[1754702702894,1.05949923,116680.0,116670.0,0.00253]
[1754702703083,0.94738825,116680.0,116670.0,0.00253]
[1754702703284,1.05949923,116680.0,116670.0,0.00253]
[1754702703484,0.09229611,116680.0,116670.0,0.49376941]
[1754702703665,0.134994,116680.0,116670.0,0.49162662]
[1754702703865,0.30296898,116680.0,116670.0,0.17395367]
[1754702704070,0.30296898,116680.0,116670.0,0.49162662]
[1754702704355,0.13056,116680.0,116670.0,0.49162662]
[1754702704737,0.13056,116680.0,116670.0,0.49262662]
[1754702704971,0.30196898,116680.0,116670.0,0.49262662]
[1754702705135,0.13056,116680.0,116670.0,0.49262662]
[1754702705338,0.30096898,116680.0,116670.0,0.49262662]
[1754702707489,0.30096898,116680.0,116670.0,0.50110008]
[1754702707946,0.30096898,116680.0,116670.0,0.49262662]
[1754702708361,0.12956,116680.0,116670.0,0.49262662]
[1754702709121,0.12956,116680.0,116670.0,0.17495367]
[1754702709545,0.12956,116680.0,116670.0,0.49262662]
[1754702710849,0.12956,116680.0,116670.0,0.50108867]
[1754702719296,1.02848699,116680.0,116670.0,0.0014]
[1754702719562,1.05423799,116680.0,116670.0,0.0014]
[1754702720148,0.73656504,116680.0,116670.0,0.0014]
[1754702725015,0.41889209,116680.0,116670.0,0.0014]
[1754702725390,0.73656504,116680.0,116670.0,0.0014]
[1754702728272,0.41889209,116680.0,116670.0,0.0014]
[1754702728557,0.73656504,116680.0,116670.0,0.0014]
[1754702730345,0.82335929,116680.0,116670.0,0.0014]
[1754702730984,0.50568634,116680.0,116670.0,0.0014]
[1754702731296,0.82335929,116680.0,116670.0,0.0014]
[1754702732991,0.73656504,116680.0,116670.0,0.0014]
[1754702739631,1.05423799,116680.0,116670.0,0.0014]
[1754702739835,0.73656504,116680.0,116670.0,0.0014]
[1754702743632,0.41889209,116680.0,116670.0,0.0014]
[1754702743842,0.73656504,116680.0,116670.0,0.0014]
[1754702747752,0.74066504,116680.0,116670.0,0.0014]
[1754702753333,0.74066504,116680.0,116670.0,0.07852056]
[1754702754717,0.74066504,116680.0,116670.0,0.0014]
[1754702755505,0.74066504,116680.0,116670.0,0.07852056]
[1754702755709,0.74066504,116680.0,116670.0,0.0014]
[1754702756584,0.74066504,116680.0,116670.0,0.07852056]
[1754702756793,0.74066504,116680.0,116670.0,0.0014]
[1754702757898,0.74066504,116680.0,116670.0,0.07852056]
[1754702758113,0.74066504,116680.0,116670.0,0.0014]
[1754702758263,0.74066504,116680.0,116670.0,0.07852056]
[1754702759441,0.74066504,116680.0,116670.0,0.0014]
[1754702760986,0.74066504,116680.0,116670.0,0.07852056]
[1754702761189,0.74066504,116680.0,116670.0,0.0014]
[1754702761600,0.74066504,116680.0,116670.0,0.07852056]
[1754702761803,0.74066504,116680.0,116670.0,0.0014]
[1754702772878,0.42299209,116680.0,116670.0,0.0014]
[1754702773083,0.74066504,116680.0,116670.0,0.0014]
[1754702775404,0.42299209,116680.0,116670.0,0.0014]
[1754702775634,0.74066504,116680.0,116670.0,0.0014]
[1754702777480,0.74066504,116680.0,116670.0,0.07852056]
[1754702779247,0.71491404,116680.0,116670.0,0.07852056]
[1754702779491,0.39724109,116680.0,116670.0,0.07852056]
[1754702779703,0.39724109,116680.0,116670.0,0.39750351]
[1754702781233,0.39724109,116680.0,116670.0,0.07983056]
[1754702781448,0.39724109,116680.0,116670.0,0.39750351]
[1754702781893,0.39724109,116680.0,116670.0,0.07852056]
[1754702782541,0.71491404,116680.0,116670.0,0.07852056]
[1754702783816,0.39724109,116680.0,116670.0,0.39619351]
[1754702784660,0.42299209,116680.0,116670.0,0.39619351]
[1754702786700,0.39724109,116680.0,116670.0,0.39619351]
[1754702787062,0.42299209,116680.0,116670.0,0.39619351]
[1754702789396,0.42299209,116680.0,116670.0,0.07852056]
[1754702789623,0.42299209,116680.0,116670.0,0.39619351]
[1754702793280,0.39724109,116680.0,116670.0,0.56892718]
[1754702793661,0.39724109,116680.0,116670.0,0.39750351]
[1754702807962,0.39724109,116680.0,116670.0,0.07983056]
[1754702808392,0.39724109,116680.0,116670.0,0.07852056]
[1754702814038,0.71491404,116680.0,116670.0,0.07852056]
[1754702818975,0.71491404,116680.0,116670.0,0.24994423]
[1754702825984,0.39724109,116680.0,116670.0,0.24994423]
[1754702826184,0.71491404,116680.0,116670.0,0.24994423]
[1754702827893,0.71491404,116680.0,116670.0,0.07852056]
[1754702828876,0.71491404,116680.0,116670.0,0.24994423]
[1754702829460,0.39724109,116680.0,116670.0,0.24994423]
[1754702829678,0.71491404,116680.0,116670.0,0.24994423]
[1754702830914,0.71491404,116680.0,116670.0,0.07852056]
[1754702831152,0.39724109,116680.0,116670.0,0.24994423]
[1754702831365,0.71491404,116680.0,116670.0,0.24994423]
[1754702832332,0.39724109,116680.0,116670.0,0.56761718]
[1754702838869,0.22583211,116680.0,116670.0,0.56761718]
[1754702840162,0.25158211,116680.0,116670.0,0.56761718]
[1754702844018,0.42299109,116680.0,116670.0,0.56761718]
[1754702844584,0.25158211,116680.0,116670.0,0.56761718]
[1754702848716,0.42299109,116680.0,116670.0,0.56761718]
[1754702850140,0.25158211,116680.0,116670.0,0.56761718]
[1754702869412,0.25158211,116680.0,116670.0,0.56892718]
[1754702889695,0.25158211,116680.0,116670.0,0.56761718]
[1754702891945,0.24946211,116680.0,116670.0,0.56892718]
[1754702892345,0.25162211,116680.0,116670.0,0.56892718]
[1754702895559,0.25162211,116680.0,116670.0,0.56761718]
[1754702895767,0.25162211,116680.0,116670.0,0.24994423]
[1754702895967,0.25162211,116680.0,116670.0,0.56761718]
[1754702899406,0.22587211,116680.0,116670.0,0.56761718]
[1754702904208,0.22587211,116680.0,116670.0,0.24994423]
[1754702904402,0.22587211,116680.0,116670.0,0.56761718]
[1754702909990,0.39728109,116680.0,116670.0,0.56761718]
[1754702929256,0.39728109,116680.0,116670.0,0.24994423]
[1754702929475,0.39728109,116680.0,116670.0,0.56761718]
[1754702935784,0.39728109,116680.0,116670.0,0.39619351]
[1754702938084,0.39728109,116680.0,116670.0,0.07852056]
[1754702938304,0.71495404,116680.0,116670.0,0.07852056]
[1754702940198,0.75856473,116680.0,116670.0,0.07852056]
[1754702943215,0.71495404,116680.0,116670.0,0.07852056]
[1754702946413,0.39728109,116680.0,116670.0,0.07852056]
[1754702946632,0.71495404,116680.0,116670.0,0.07852056]
[1754702972378,0.39728109,116680.0,116670.0,0.07852056]
[1754702972556,0.71495404,116680.0,116670.0,0.07852056]
[1754702976747,0.39728109,116680.0,116670.0,0.07852056]
[1754702977076,0.71495404,116680.0,116670.0,0.07852056]
[1754702977493,0.39720109,116680.0,116670.0,0.07852056]
[1754702978720,0.71487404,116680.0,116670.0,0.07852056]
[1754702983135,0.39720109,116680.0,116670.0,0.07852056]
[1754702983316,0.71487404,116680.0,116670.0,0.07852056]
[1754702983523,0.71487404,116680.0,116670.0,0.24994423]
[1754702988685,0.39720109,116680.0,116670.0,0.24994423]
[1754702988917,0.54346506,116680.0,116670.0,0.24994423]
[1754702992938,0.22579211,116680.0,116670.0,0.24994423]
[1754702993250,0.54346506,116680.0,116670.0,0.24994423]
[1754702994243,0.71487404,116680.0,116670.0,0.24994423]
[1754703005266,0.56921606,116680.0,116670.0,0.24994423]
[1754703005850,0.25154311,116680.0,116670.0,0.24994423]
[1754703006054,0.56921606,116680.0,116670.0,0.24994423]
[1754703006258,0.54346506,116680.0,116670.0,0.24994423]
[1754703010261,0.71487404,116680.0,116670.0,0.24994423]
[1754703010844,0.74062504,116680.0,116670.0,0.24994423]
[1754703011708,0.71487404,116680.0,116670.0,0.24994423]
[1754703013114,0.39720109,116680.0,116670.0,0.24994423]
[1754703013336,0.71487404,116680.0,116670.0,0.24994423]
[1754703014753,0.39720109,116680.0,116670.0,0.24994423]
[1754703014879,0.71487404,116680.0,116670.0,0.24994423]
[1754703015544,0.39720109,116680.0,116670.0,0.24994423]
[1754703015827,0.71487404,116680.0,116670.0,0.24994423]
[1754703017851,0.39720109,116680.0,116670.0,0.24994423]
[1754703018057,0.22579211,116680.0,116670.0,0.24994423]
[1754703018307,0.54346506,116680.0,116670.0,0.24994423]
[1754703019744,0.56921606,116680.0,116670.0,0.24994423]
[1754703027481,0.25154311,116680.0,116670.0,0.24994423]
[1754703027699,0.56921606,116680.0,116670.0,0.24994423]
[1754703038286,0.74062504,116680.0,116670.0,0.24994423]
[1754703051912,0.42295209,116680.0,116670.0,0.24994423]
[1754703052272,0.74062504,116680.0,116670.0,0.24994423]
[1754703061415,0.42295209,116680.0,116670.0,0.24994423]
[1754703061643,0.74062504,116680.0,116670.0,0.24994423]
[1754703061863,0.42295209,116680.0,116670.0,0.24994423]
[1754703062072,0.74062504,116680.0,116670.0,0.24994423]
[1754703063393,0.42295209,116680.0,116670.0,0.24994423]
[1754703063588,0.74062504,116680.0,116670.0,0.24994423]
[1754703064574,0.42295209,116680.0,116670.0,0.24994423]
[1754703064780,0.74062504,116680.0,116670.0,0.24994423]
[1754703066226,0.42295209,116680.0,116670.0,0.24994423]
[1754703066638,0.74062504,116680.0,116670.0,0.24994423]
[1754703073222,0.56921606,116680.0,116670.0,0.24994423]
[1754703077703,0.25154311,116680.0,116670.0,0.24994423]
[1754703077928,0.56921606,116680.0,116670.0,0.24994423]
[1754703080438,0.25154311,116680.0,116670.0,0.24994423]
[1754703080627,0.56921606,116680.0,116670.0,0.24994423]
[1754703081436,0.25154311,116680.0,116670.0,0.24994423]
[1754703081640,0.56921606,116680.0,116670.0,0.24994423]
[1754703083268,0.74062504,116680.0,116670.0,0.24994423]
[1754703086250,0.42295209,116680.0,116670.0,0.24994423]
[1754703086561,0.74062504,116680.0,116670.0,0.24994423]
[1754703087468,0.74062504,116680.0,116670.0,0.07852056]
[1754703097958,0.74062504,116680.0,116670.0,0.24994423]
[1754703099294,0.74062504,116680.0,116670.0,0.07852056]
[1754703100551,0.82325728,116680.0,116670.0,0.07852056]
[1754703102452,0.74062504,116680.0,116670.0,0.07852056]
[1754703107002,0.74062504,116680.0,116670.0,0.24994423]
[1754703108495,0.74062504,116680.0,116670.0,0.07852056]
[1754703113142,0.42295209,116680.0,116670.0,0.07852056]
[1754703113359,0.74062504,116680.0,116670.0,0.07852056]
[1754703115314,0.44040111,116680.0,116670.0,0.07852056]
[1754703115524,0.73232306,116680.0,116670.0,0.07852056]
[1754703115838,0.75807406,116680.0,116670.0,0.07852056]
[1754703117547,0.44040111,116680.0,116670.0,0.07852056]
[1754703117754,0.75807406,116680.0,116670.0,0.07852056]
[1754703130948,0.44040111,116680.0,116670.0,0.07852056]
[1754703131089,0.75807406,116680.0,116670.0,0.07852056]
[1754703134070,0.44040111,116680.0,116670.0,0.07852056]
[1754703134281,0.75807406,116680.0,116670.0,0.07852056]
[1754703135775,0.75807406,116680.0,116670.0,0.24994423]
[1754703140446,0.44040111,116680.0,116670.0,0.24994423]
[1754703140706,0.75807406,116680.0,116670.0,0.24994423]
[1754703142807,0.44040111,116680.0,116670.0,0.24994423]
[1754703143023,0.33608998,116680.0,116670.0,0.56892718]
[1754703143914,0.0041,116680.0,116670.0,0.56892718]
[1754703144119,0.0041,116680.0,116670.0,0.91827547]
[1754703144120,0.1341,116680.0,116670.0,0.91827547]
[1754703144323,0.1341,116680.0,116670.0,0.60060252]
[1754703144532,0.1341,116680.0,116670.0,1.07423474]
[1754703144754,0.1341,116680.0,116670.0,1.09997974]
[1754703144960,0.0041,116680.0,116670.0,1.33200384]
[1754703145168,0.09837273,116710.0,116700.0,0.1713796]
[1754703145365,0.29169084,116710.0,116700.0,0.24852042]
[1754703145589,0.30913986,116710.0,116700.0,0.1713796]
[1754703145730,0.29169084,116710.0,116700.0,0.1713796]
[1754703145933,0.78072871,116710.0,116700.0,0.1713796]
[1754703146130,0.79817773,116710.0,116700.0,0.1713796]
[1754703147437,0.55733519,116710.0,116700.0,0.1713796]
[1754703147639,0.23966224,116710.0,116700.0,0.1713796]
[1754703148407,0.41102716,116710.0,116700.0,0.1713796]
[1754703149025,0.72870011,116710.0,116700.0,0.1713796]
[1754703149466,0.41102716,116710.0,116700.0,0.1713796]
[1754703149670,0.41102716,116710.0,116690.0,0.24853511]
[1754703149871,0.72563011,116710.0,116690.0,0.24853511]
[1754703150080,0.00307,116700.0,116690.0,0.24853511]
[1754703150284,0.00523,116700.0,116690.0,0.24853511]
[1754703152615,0.00523,116700.0,116690.0,0.24953511]
[1754703152962,0.00523,116700.0,116690.0,0.25053511]
[1754703153494,0.00523,116700.0,116690.0,0.17339429]
[1754703154226,0.00523,116700.0,116690.0,0.17470429]
[1754703155998,0.1766096,116700.0,116690.0,0.17470429]
[1754703158902,0.00523,116700.0,116690.0,0.17470429]
[1754703164048,0.32290295,116700.0,116690.0,0.17470429]
[1754703164455,0.32290295,116700.0,116690.0,0.17339429]
[1754703167017,0.00523,116700.0,116690.0,0.17339429]
[1754703167391,0.32290295,116700.0,116690.0,0.17339429]
[1754703167597,0.32290295,116700.0,116690.0,0.25053511]
[1754703170546,0.49428255,116700.0,116690.0,0.25053511]
[1754703171404,0.32290295,116700.0,116690.0,0.25053511]
[1754703174628,0.32290295,116700.0,116690.0,0.17339429]
[1754703176254,0.49428255,116700.0,116690.0,0.25057487]
[1754703176602,0.1766096,116700.0,116690.0,0.25057487]
[1754703176810,0.49428255,116700.0,116690.0,0.25057487]
[1754703178209,0.8119555,116700.0,116690.0,0.07918058]
[1754703178875,1.00306088,116700.0,116690.0,0.07918058]
[1754703179147,0.91626663,116700.0,116690.0,0.07918058]
[1754703179371,0.94201463,116700.0,116690.0,0.002]
[1754703179771,0.96539463,116700.0,116690.0,0.002]
[1754703181674,0.96539463,116700.0,116690.0,0.001]
[1754703182173,0.17140898,116680.0,116670.0,0.07758058]
[1754703182415,0.62099193,116680.0,116670.0,0.07758058]
[1754703182864,0.62418193,116680.0,116670.0,0.07758058]
[1754703183759,0.62418193,116680.0,116670.0,0.07858058]
[1754703185894,0.30650898,116680.0,116670.0,0.07858058]
[1754703186125,0.62418193,116680.0,116670.0,0.0024]
[1754703186539,0.30650898,116680.0,116670.0,0.0024]
[1754703186746,0.62418193,116680.0,116670.0,0.0024]
[1754703188292,0.30650898,116680.0,116670.0,0.0024]
[1754703188500,0.62418193,116680.0,116670.0,0.0024]
[1754703196166,0.30650898,116680.0,116670.0,0.0024]
[1754703196380,0.62418193,116680.0,116670.0,0.0024]
[1754703198411,0.30650898,116680.0,116670.0,0.0024]
[1754703198609,0.62418193,116680.0,116670.0,0.0024]
[1754703199258,0.64993293,116680.0,116670.0,0.0024]
[1754703199627,0.62418193,116680.0,116670.0,0.0024]
[1754703205447,0.62418193,116680.0,116670.0,0.07958058]
[1754703206767,0.30650898,116680.0,116670.0,0.07958058]
[1754703206927,0.62418193,116680.0,116670.0,0.07958058]
[1754703212446,0.17654898,116680.0,116670.0,0.5686772]
[1754703212657,0.30638898,116680.0,116670.0,0.5686772]
[1754703216208,0.30638898,116680.0,116670.0,0.25100425]
[1754703218412,0.62406193,116680.0,116670.0,0.25100425]
[1754703219026,0.30638898,116680.0,116670.0,0.25100425]
[1754703219229,0.62406193,116680.0,116670.0,0.25100425]
[1754703219604,0.62406193,116680.0,116670.0,0.07958058]
[1754703223079,0.62406193,116680.0,116670.0,0.25100425]
[1754703232542,0.30638898,116680.0,116670.0,0.25100425]
[1754703232751,0.62406193,116680.0,116670.0,0.25100425]
[1754703234804,0.025751,116690.0,116680.0,0.17140898]
[1754703235067,0.00309,116700.0,116690.0,0.17139429]
[1754703235228,0.45064295,116700.0,116690.0,0.17139429]
[1754703235431,0.135,116700.0,116690.0,0.17270429]
[1754703235637,0.31775406,116710.0,116700.0,0.1713796]
[1754703235844,0.72843011,116710.0,116700.0,0.1713796]
[1754703236502,0.41075716,116710.0,116700.0,0.1713796]
[1754703236704,0.72843011,116710.0,116700.0,0.1713796]
[1754703236900,0.72943011,116710.0,116700.0,0.1713796]
[1754703237141,0.73043011,116710.0,116700.0,0.1713796]
[1754703237567,0.41275716,116710.0,116700.0,0.1713796]
[1754703237730,0.73043011,116710.0,116700.0,0.1713796]
[1754703240321,0.73043011,116710.0,116690.0,0.24857487]
[1754703240534,0.32076295,116700.0,116690.0,0.24857487]
[1754703240737,0.32279295,116700.0,116690.0,0.24857487]
[1754703243821,0.00512,116700.0,116690.0,0.24857487]
[1754703243999,0.32279295,116700.0,116690.0,0.24857487]
[1754703245645,0.00512,116700.0,116690.0,0.24857487]
[1754703245827,0.32279295,116700.0,116690.0,0.24857487]
[1754703248768,0.32279295,116700.0,116690.0,0.17139429]
[1754703249842,0.49417255,116700.0,116690.0,0.17139429]
[1754703254183,0.49417255,116700.0,116690.0,0.24857487]
[1754703254944,0.49417255,116700.0,116690.0,0.17139429]
[1754703256344,0.49417255,116700.0,116690.0,0.24857487]
[1754703256724,0.49417255,116700.0,116690.0,0.17139429]
[1754703259215,0.49417255,116700.0,116690.0,0.24857487]
[1754703264783,0.1764996,116700.0,116690.0,0.24857487]
[1754703265000,0.49417255,116700.0,116690.0,0.24857487]
[1754703269696,0.1764996,116700.0,116690.0,0.24857487]
[1754703269897,0.49417255,116700.0,116690.0,0.24857487]
[1754703270324,0.1764996,116700.0,116690.0,0.24857487]
[1754703270525,0.49417255,116700.0,116690.0,0.24857487]
[1754703277209,0.1764996,116700.0,116690.0,0.24857487]
[1754703277409,0.49417255,116700.0,116690.0,0.24857487]
[1754703278165,0.1764996,116700.0,116690.0,0.24857487]
[1754703278354,0.49417255,116700.0,116690.0,0.24857487]
[1754703280726,0.49417255,116700.0,116690.0,0.07718058]
[1754703282174,0.8118455,116700.0,116690.0,0.07718058]
[1754703283967,0.1764996,116700.0,116690.0,0.24857487]
[1754703284163,0.49417255,116700.0,116690.0,0.24857487]
[1754703287421,0.49417255,116700.0,116690.0,0.07718058]
[1754703287743,0.1764996,116700.0,116690.0,0.07718058]
[1754703288190,0.49417255,116700.0,116690.0,0.07718058]
[1754703288537,0.1764996,116700.0,116690.0,0.24857487]
[1754703288740,0.49417255,116700.0,116690.0,0.24857487]
[1754703295955,0.49417255,116700.0,116690.0,0.07718058]
[1754703296905,0.27575716,116710.0,116690.0,0.56755782]
[1754703297099,0.12976,116700.0,116690.0,0.56755782]
[1754703297312,0.12976,116700.0,116690.0,0.49037724]
[1754703298419,0.12976,116700.0,116690.0,0.49137724]
[1754703300101,0.13269,116700.0,116690.0,0.56954103]
[1754703300267,0.13269,116700.0,116690.0,0.49237724]
[1754703304226,0.13269,116700.0,116690.0,0.5695287]
[1754703307948,0.3061296,116700.0,116690.0,0.5695287]
[1754703310351,0.3061296,116700.0,116690.0,0.25185575]
[1754703316689,0.3061296,116700.0,116690.0,0.5695287]
[1754703316891,0.3061296,116700.0,116690.0,0.5682187]
[1754703318899,0.3061296,116700.0,116690.0,0.25054575]
[1754703322217,0.3060496,116700.0,116690.0,0.25185575]
[1754703322436,0.3060496,116700.0,116690.0,0.5695287]
[1754703324317,0.13467,116700.0,116690.0,0.5695287]
[1754703326266,0.3060496,116700.0,116690.0,0.5695287]
[1754703326597,0.13467,116700.0,116690.0,0.25185575]
[1754703326808,0.13467,116700.0,116690.0,0.5695287]
[1754703328670,0.3060496,116700.0,116690.0,0.5695287]
[1754703337167,0.62372255,116700.0,116690.0,0.25185575]
[1754703337317,0.62372255,116700.0,116690.0,0.25054575]
[1754703348271,0.3060496,116700.0,116690.0,0.25054575]
[1754703348697,0.62372255,116700.0,116690.0,0.25054575]
[1754703351054,0.62372255,116700.0,116690.0,0.07915146]
[1754703354171,0.3060496,116700.0,116690.0,0.07915146]
[1754703354323,0.62372255,116700.0,116690.0,0.07915146]
[1754703355658,0.1763696,116700.0,116690.0,0.25054575]
[1754703356110,0.1763696,116700.0,116690.0,0.5682187]
[1754703356315,0.1763696,116700.0,116690.0,0.25185575]
[1754703356853,0.1763696,116700.0,116690.0,0.5695287]
[1754703359842,0.1763696,116700.0,116690.0,0.5682187]
[1754703360489,0.00499,116700.0,116690.0,0.5682187]
[1754703361676,0.49404255,116700.0,116690.0,0.25054575]
[1754703362078,0.1763696,116700.0,116690.0,0.25054575]
[1754703364960,0.49404255,116700.0,116690.0,0.25054575]
[1754703365941,0.00499,116700.0,116690.0,0.5682187]
[1754703366356,0.00499,116700.0,116690.0,0.25054575]
[1754703366546,0.00499,116700.0,116690.0,0.5682187]
[1754703368297,0.00499,116700.0,116690.0,0.25054575]
[1754703368516,0.00499,116700.0,116690.0,0.5682187]
[1754703369648,0.00499,116700.0,116690.0,0.5738587]
[1754703369871,0.32982007,116710.0,116700.0,0.1713796]
[1754703370075,0.00303111,116710.0,116700.0,0.49036255]
[1754703370279,0.00507111,116710.0,116700.0,0.49036255]
[1754703370498,0.13611111,116710.0,116700.0,0.24984106]
[1754703371092,0.13611111,116710.0,116700.0,0.25084106]
[1754703371357,0.45378406,116710.0,116700.0,0.25184106]
[1754703372126,0.13611111,116710.0,116700.0,0.25184106]
[1754703372343,0.13611111,116710.0,116700.0,0.25053106]
[1754703372527,0.30747603,116710.0,116700.0,0.25053106]
[1754703372709,0.30747603,116710.0,116700.0,0.25901777]
[1754703373321,0.13611111,116710.0,116700.0,0.25901777]
[1754703376897,0.30747603,116710.0,116700.0,0.25901777]
[1754703378147,0.62514898,116710.0,116700.0,0.25901777]
[1754703378345,0.62514898,116710.0,116700.0,0.18186631]
[1754703378827,0.30747603,116710.0,116700.0,0.18186631]
[1754703379033,0.62514898,116710.0,116700.0,0.18186631]
[1754703381130,0.62514898,116710.0,116700.0,0.25901777]